bitfinex/quotes_ETHUSD_20260307
["timestamp","ask_amount","ask_price","bid_price","bid_amount"]
[1772868922149,1.26454674,1977.0,1976.8,0.001]
[1772868922351,1.21103162,1977.0,1976.8,0.001]
[1772868922524,2.47557738,1977.0,1976.8,0.001]
[1772868923440,2.47557738,1977.0,1976.9,0.001]
[1772868923639,0.002,1977.0,1976.9,1.14230892]
[1772868924897,0.002,1977.0,1976.9,0.001]
[1772868926030,1.21303162,1977.0,1976.8,0.001]
[1772868926238,1.21303162,1977.0,1976.6,0.001]
[1772868927062,2.47563782,1976.9,1976.6,1.14230892]
[1772868927433,1.21103162,1976.9,1976.6,1.14230892]
[1772868927731,0.002,1977.0,1976.6,1.14230892]
[1772868927932,1.21303162,1977.0,1976.6,1.14230892]
[1772868928353,2.47757762,1977.0,1976.6,1.14230892]
[1772868930256,1.21303162,1977.0,1976.6,2.40708602]
[1772868930550,2.47757812,1977.0,1976.6,2.40708602]
[1772868930754,1.21303162,1977.0,1976.7,1.14130892]
[1772868931066,2.47757685,1977.0,1976.7,1.14130892]
[1772868932157,1.21303162,1977.0,1976.7,1.14130892]
[1772868934465,2.47758101,1977.0,1976.7,1.14130892]
[1772868935172,1.1882808,1976.9,1976.6,0.001]
[1772868935467,1.1882808,1976.9,1976.6,1.24796879]
[1772868937669,1.1882808,1976.9,1976.7,0.001]
[1772868937867,1.1902808,1976.9,1976.7,0.001]
[1772868938240,2.45491342,1976.9,1976.7,0.001]
[1772868941767,0.002,1976.9,1976.7,1.24796879]
[1772868946587,0.002,1976.9,1976.8,1.24696879]
[1772868948884,0.002,1976.9,1976.8,2.51163896]
[1772868949248,0.002,1977.0,1976.9,1.24696879]
[1772868961257,0.002,1977.0,1976.9,1.24796879]
[1772868965963,0.002,1977.1,1977.0,1.12001999]
[1772868966964,1.2160402,1977.4,1977.1,1.12001999]
[1772868969966,4.38126006,1978.1,1978.0,46.39302776]
[1772868970180,0.5276254,1978.0,1977.1,1.12001999]
[1772868970962,1.26396683,1977.9,1977.1,1.12001999]
[1772868971166,0.52731407,1977.8,1976.9,2.38562617]
[1772868971368,0.52731407,1977.8,1976.9,1.12101999]
[1772868971597,0.52731407,1977.8,1976.9,2.38561949]
[1772868972301,0.52731407,1977.8,1976.9,1.12101999]
[1772868972705,0.52731407,1977.8,1976.9,0.001]
[1772868973005,1.2160402,1977.6,1976.9,1.12101999]
[1772868973307,1.2160402,1977.4,1976.9,1.12101999]
[1772868973886,1.2160402,1977.4,1977.0,0.001]
[1772868975508,1.26435037,1977.3,1977.0,0.001]
[1772868975709,2.48039057,1977.3,1977.0,0.001]
[1772868977302,1.2160402,1977.2,1977.0,0.001]
[1772868982103,1.2160402,1977.3,1977.0,1.12101999]
[1772868985525,2.48039669,1977.3,1977.0,1.12101999]
[1772868987539,2.48039669,1977.3,1977.1,0.001]
[1772868987734,1.26431071,1977.4,1977.1,1.12101999]
[1772868988039,2.48035091,1977.4,1977.1,1.12101999]
[1772868988540,1.2160402,1977.3,1977.0,0.001]
[1772868989444,1.2160402,1977.3,1976.9,0.001]
[1772868989648,1.2160402,1976.9,1976.6,0.001]
[1772868989818,1.2160402,1976.8,1976.6,0.001]
[1772868991848,2.48077435,1976.7,1976.6,0.001]
[1772868993243,3.85227238,1976.9,1976.6,0.001]
[1772868993447,1.536,1976.8,1976.6,0.001]
[1772868994239,2.8007296,1976.8,1976.6,0.001]
[1772868994444,5.38839578,1976.8,1976.6,0.001]
[1772868994963,2.58766618,1976.7,1976.6,0.001]
[1772868997252,3.85240033,1976.7,1976.6,0.001]
[1772868997438,5.38940033,1976.7,1976.6,0.001]
[1772868997960,2.58766618,1976.6,1976.5,0.001]
[1772869000331,3.85246431,1976.6,1976.5,0.001]
[1772869000843,3.85446431,1976.6,1976.5,0.001]
[1772869002154,2.58966618,1976.6,1976.5,0.001]
[1772869002342,1.541,1976.6,1976.5,0.001]
[1772869003254,0.002,1976.6,1976.5,0.001]
[1772869003430,1.541,1976.6,1976.5,0.001]
[1772869006261,0.002,1976.6,1976.5,2.41641151]
[1772869006462,1.543,1976.6,1976.5,2.41641151]
[1772869007960,0.002,1976.6,1976.5,2.41641151]
[1772869015866,0.002,1976.6,1976.4,0.001]
[1772869016052,0.002,1976.6,1976.4,2.41641151]
[1772869016770,0.002,1976.6,1976.5,2.41541151]
[1772869017146,0.002,1976.6,1976.4,0.001]
[1772869017343,2.58966618,1976.6,1976.4,0.001]
[1772869018138,1.26486213,1976.5,1976.4,0.001]
[1772869018545,2.46147404,1976.4,1976.3,0.001]
[1772869019054,3.72633617,1976.5,1976.3,0.001]
[1772869019241,2.46147404,1976.4,1976.3,0.001]
[1772869020560,2.46147404,1976.3,1976.2,0.001]
[1772869020770,2.46147404,1976.2,1976.0,0.001]
[1772869022858,3.73719404,1976.1,1976.0,0.001]
[1772869023972,2.47207588,1976.1,1976.0,0.001]
[1772869024771,2.47207588,1976.1,1975.8,0.001]
[1772869024987,3.73721646,1976.1,1975.8,0.001]
[1772869025359,1.548,1976.0,1975.8,0.001]
[1772869026256,1.549,1976.0,1975.8,0.001]
[1772869027655,1.549,1976.0,1975.8,0.9270267]
[1772869030380,2.47207588,1976.1,1975.8,0.9270267]
[1772869030561,1.551,1976.1,1975.9,0.5247607]
[1772869030889,4.02307588,1976.1,1975.9,0.001]
[1772869034185,5.28819416,1976.1,1975.9,0.001]
[1772869034683,2.47207588,1976.0,1975.8,0.001]
[1772869036388,4.02507588,1976.0,1975.8,0.001]
[1772869038689,4.02507588,1976.0,1975.9,0.001]
[1772869041381,2.47407588,1976.1,1975.9,0.001]
[1772869041891,0.002,1976.1,1975.9,0.001]
[1772869042462,0.002,1976.4,1975.9,0.001]
[1772869049694,2.47407588,1976.4,1975.9,0.001]
[1772869051198,0.002,1976.3,1975.9,0.001]
[1772869052983,1.46563514,1976.3,1975.9,0.001]
[1772869053908,1.46363514,1976.2,1975.9,0.001]
[1772869055108,1.46363514,1976.2,1975.8,0.001]
[1772869056587,1.26511816,1976.1,1975.8,0.001]
[1772869056791,1.46313514,1976.0,1975.8,0.001]
[1772869057182,1.46313514,1976.0,1975.7,0.001]
[1772869057384,1.46313514,1976.0,1975.6,0.001]
[1772869059319,1.46313514,1975.8,1975.6,0.001]
[1772869061510,4.28450943,1975.7,1975.6,0.001]
[1772869062585,4.28450943,1975.7,1975.6,0.002]
[1772869062586,1.557,1975.7,1975.6,0.002]
[1772869063018,3.02013514,1975.7,1975.6,0.002]
[1772869063491,4.28550943,1975.7,1975.6,0.001]
[1772869064621,1.46263514,1975.6,1975.5,0.001]
[1772869064916,1.46263514,1975.6,1975.5,0.002]
[1772869065614,4.28607348,1975.6,1975.5,0.002]
[1772869065912,4.28607348,1975.6,1974.5,3.02281206]
[1772869065913,1.45847521,1975.5,1974.5,3.02281206]
[1772869066691,3.01647521,1975.6,1975.4,0.002]
[1772869066893,3.01647521,1975.6,1974.5,3.02281206]
[1772869067089,1.45847521,1975.5,1974.5,3.02281206]
[1772869069229,2.82348206,1975.6,1974.5,3.02281206]
[1772869069230,1.45847521,1975.4,1974.5,3.02281206]
[1772869070409,1.45847521,1975.5,1974.5,3.02281206]
[1772869074400,2.72397895,1975.5,1974.5,3.02281206]
[1772869074601,2.72397895,1975.5,1975.4,0.001]
[1772869074812,2.72397761,1975.5,1975.4,0.001]
[1772869075001,2.72597761,1975.5,1975.4,0.001]
[1772869075222,1.46047521,1975.5,1975.4,0.001]
[1772869075640,2.72597761,1975.5,1975.4,0.001]
[1772869076515,1.46047521,1975.5,1975.4,0.001]
[1772869077210,2.72597761,1975.5,1975.4,0.001]
[1772869077737,1.46047521,1975.5,1975.4,0.001]
[1772869077924,2.72597761,1975.5,1975.4,0.001]
[1772869078342,0.002,1975.5,1975.4,0.001]
[1772869079945,1.45990635,1975.5,1975.4,0.001]
[1772869080725,0.002,1975.5,1975.4,0.001]
[1772869084423,0.002,1975.7,1975.4,0.001]
[1772869085425,1.45552816,1975.7,1975.4,0.001]
[1772869087149,1.45552816,1975.7,1975.5,0.001]
[1772869090181,0.002,1975.7,1975.5,0.001]
[1772869096589,1.46154704,1975.7,1975.5,0.001]
[1772869099425,0.002,1975.6,1975.5,0.001]
[1772869099612,1.46154704,1975.6,1975.5,0.001]
[1772869102711,2.72698538,1975.6,1975.5,0.001]
[1772869103117,1.46154704,1975.6,1975.5,0.001]
[1772869106429,2.72698538,1975.6,1975.5,0.001]
[1772869107528,1.46154704,1975.6,1975.5,0.001]
[1772869111332,2.72698538,1975.6,1975.5,0.001]
[1772869114714,1.45460408,1975.5,1975.4,0.001]
[1772869115929,2.72010648,1975.5,1975.4,0.001]
[1772869116672,1.45460408,1975.4,1975.2,0.001]
[1772869116816,4.48886282,1975.3,1975.2,0.001]
[1772869118036,5.75449335,1975.3,1975.2,0.001]
[1772869120737,1.45460408,1975.2,1974.6,1.2660792]
[1772869121047,3.03425874,1975.1,1974.6,1.2660792]
[1772869121245,3.03425874,1975.0,1974.6,1.2660792]
[1772869121544,1.45460408,1975.2,1974.6,1.2660792]
[1772869121745,3.02994919,1975.1,1974.6,1.2660792]
[1772869121947,3.02994919,1975.0,1974.6,1.2660792]
[1772869122246,1.45460408,1975.2,1974.6,1.2660792]
[1772869122445,3.02922533,1975.1,1974.6,1.2660792]
[1772869122647,2.72031302,1975.2,1974.6,1.2660792]
[1772869122941,3.02922533,1975.1,1974.6,1.2660792]
[1772869123151,2.72031302,1975.2,1974.6,1.2660792]
[1772869123321,3.02864889,1975.1,1974.6,1.2660792]
[1772869123642,1.45460408,1975.1,1974.6,1.2660792]
[1772869124526,1.26573761,1975.2,1974.5,3.02283656]
[1772869124848,3.02828506,1975.1,1975.0,0.001]
[1772869125047,3.02828506,1975.1,1974.3,1.26627158]
[1772869125230,1.26573761,1975.2,1974.3,1.26627158]
[1772869125231,1.45410408,1974.9,1974.3,1.26627158]
[1772869126640,1.26589076,1974.9,1974.3,1.26627158]
[1772869126844,1.45410408,1974.8,1974.3,1.26627158]
[1772869127229,0.72705204,1975.1,1975.0,64.25314596]
[1772869127429,3.75306616,1975.1,1975.0,64.25314596]
[1772869127637,0.72705204,1975.1,1975.0,64.25314596]
[1772869128239,0.72705204,1975.1,1975.0,18.19659847]
[1772869128551,0.72705204,1975.1,1974.3,1.26627158]
[1772869129652,2.29705204,1975.2,1974.3,1.26627158]
[1772869129831,0.72705204,1975.2,1974.3,1.26627158]
[1772869130428,0.72705204,1975.1,1974.3,1.26627158]
[1772869132260,0.72705204,1975.2,1974.3,1.26627158]
[1772869132559,0.72705204,1975.1,1974.3,1.26627158]
[1772869136374,0.72705204,1975.1,1974.4,0.001]
[1772869136569,0.72905204,1975.0,1974.4,0.001]
[1772869136773,0.002,1975.0,1974.4,0.001]
[1772869138176,0.72705204,1974.9,1974.4,0.001]
[1772869139178,0.002,1975.0,1974.4,0.001]
[1772869141776,0.72905204,1975.0,1974.4,0.001]
[1772869142276,0.002,1975.0,1974.4,0.001]
[1772869144683,0.002,1975.1,1974.4,0.001]
[1772869145176,0.45735138,1975.4,1974.5,0.28034147]
[1772869147979,0.45735138,1975.4,1974.7,0.28034147]
[1772869149191,0.45935138,1975.3,1974.7,0.28034147]
[1772869150065,0.45935138,1975.3,1974.8,1.26595098]
[1772869150265,0.45935138,1975.3,1974.9,0.28034147]
[1772869151400,0.45935138,1975.6,1975.0,0.48654578]
[1772869152101,0.45935138,1975.6,1975.1,1.26575869]
[1772869153405,0.45935138,1975.6,1975.1,1.75230447]
[1772869154611,0.45935138,1975.6,1975.2,0.48654578]
[1772869160286,0.45935138,1975.6,1975.3,1.26563053]
[1772869161489,0.45935138,1975.6,1975.2,1.26565631]
[1772869161691,0.45935138,1975.6,1975.3,0.001]
[1772869161908,0.45935138,1975.5,1975.3,0.001]
[1772869168824,0.002,1975.5,1975.3,0.48754578]
[1772869169123,0.002,1975.5,1975.3,0.001]
[1772869169319,0.45935138,1975.5,1975.3,0.001]
[1772869172029,0.45935138,1975.5,1975.2,0.001]
[1772869172030,0.47609701,1975.4,1975.2,0.001]
[1772869173911,1.26563053,1975.3,1975.2,0.001]
[1772869174110,1.74172754,1975.3,1975.2,0.001]
[1772869179739,0.47609701,1975.3,1975.2,0.001]
[1772869180328,0.47809701,1975.5,1975.2,0.001]
[1772869180534,1.55,1975.4,1975.2,0.47852153]
[1772869180731,1.55,1975.4,1975.2,0.001]
[1772869181043,0.47609701,1975.3,1975.0,0.001]
[1772869181342,0.47609701,1975.3,1975.0,0.47852153]
[1772869181714,0.47609701,1975.3,1975.0,0.001]
[1772869182442,1.74173544,1975.3,1975.0,0.001]
[1772869182616,0.47609701,1975.2,1975.0,0.001]
[1772869184844,0.47609701,1975.3,1975.0,0.47852153]
[1772869186019,0.47609701,1975.3,1975.1,0.001]
[1772869186220,0.47809701,1975.3,1975.1,0.001]
[1772869192448,0.47609701,1975.2,1975.1,0.001]
[1772869193333,1.74179162,1975.2,1975.1,0.001]
[1772869193646,0.47609701,1975.2,1975.1,0.001]
[1772869193861,0.47809701,1975.3,1975.1,0.001]
[1772869194956,0.002,1975.3,1975.1,0.47852153]
[1772869197867,0.002,1975.3,1975.1,0.001]
[1772869198457,0.002,1975.3,1975.1,0.48808058]
[1772869199666,0.002,1975.3,1975.1,1.75382942]
[1772869200163,0.002,1975.3,1975.2,0.48808058]
[1772869200340,0.002,1975.5,1975.3,0.48708058]
[1772869203350,0.002,1975.5,1975.4,1.76326904]
[1772869204385,0.002,1975.5,1975.4,0.49770258]
[1772869205564,0.002,1975.5,1975.2,0.49870258]
[1772869207772,0.49220998,1975.5,1975.2,0.001]
[1772869210370,0.49020998,1975.3,1975.2,0.001]
[1772869215671,1.75584051,1975.3,1975.2,0.001]
[1772869218376,0.49020998,1975.3,1975.2,0.001]
[1772869220581,1.7577842,1975.4,1975.2,0.001]
[1772869221375,0.002,1975.4,1975.2,0.49870258]
[1772869221956,0.49220998,1975.4,1975.2,0.001]
[1772869223780,1.75779555,1975.4,1975.1,0.49870258]
[1772869223986,1.75779555,1975.4,1975.1,0.001]
[1772869224289,0.49220998,1975.4,1975.1,0.001]
[1772869225498,0.49220998,1975.4,1975.3,0.001]
[1772869227704,0.002,1975.4,1975.3,0.001]
[1772869229316,0.002,1975.4,1975.3,0.49870258]
[1772869231009,0.002,1975.4,1975.3,0.001]
[1772869233325,0.45817969,1975.4,1975.0,0.001]
[1772869235607,1.26563053,1975.3,1975.0,0.001]
[1772869235795,1.72181022,1975.3,1975.0,0.001]
[1772869237615,1.72181022,1975.3,1975.1,0.001]
[1772869237999,1.72381022,1975.3,1975.1,0.001]
[1772869245123,0.45817969,1975.3,1975.1,0.001]
[1772869245530,1.72381105,1975.3,1975.1,0.001]
[1772869245729,0.45817969,1975.3,1975.1,0.001]
[1772869245912,0.002,1975.3,1975.1,0.2459193]
[1772869246225,0.002,1975.4,1975.2,0.2429193]
[1772869248523,0.002,1975.4,1975.2,1.50861239]
[1772869248931,0.002,1975.4,1975.3,0.23510453]
[1772869251933,0.002,1975.4,1975.3,1.50073506]
[1772869252104,0.002,1975.6,1975.4,0.23510453]
[1772869253235,0.002,1975.6,1975.4,1.50064167]
[1772869253527,0.002,1975.6,1975.5,0.23510453]
[1772869255448,0.002,1975.6,1975.5,1.50060693]
[1772869255653,0.002,1975.7,1975.6,0.23510453]
[1772869260552,0.002,1975.7,1975.5,0.23510453]
[1772869261730,0.002,1975.6,1975.5,0.23510453]
[1772869261932,0.002,1975.7,1975.5,0.23510453]
[1772869262861,0.002,1975.7,1975.5,1.50056499]
[1772869263262,0.002,1975.7,1975.5,1.26546046]
[1772869263467,0.002,1975.7,1975.6,0.23510453]
[1772869264561,0.002,1975.7,1975.6,1.50054287]
[1772869268572,0.002,1975.8,1975.6,1.50054287]
[1772869270781,0.002,1975.8,1975.7,0.23510453]
[1772869271695,0.002,1976.2,1975.7,0.23510453]
[1772869271843,0.50066201,1976.2,1975.8,0.23510453]
[1772869272846,0.50066201,1976.2,1975.9,1.26524621]
[1772869274372,0.002,1976.0,1975.9,1.26524621]
[1772869274749,0.002,1976.0,1975.9,1.50035074]
[1772869274983,0.002,1976.2,1976.0,0.23510453]
[1772869279281,0.50066201,1976.2,1976.0,1.26517719]
[1772869279688,0.50066201,1976.2,1975.9,1.50030069]
[1772869282679,0.002,1976.2,1975.9,1.50030069]
[1772869282880,0.002,1976.2,1976.0,0.23510453]
[1772869283886,0.002,1976.2,1976.1,1.26511816]
[1772869284781,0.002,1976.2,1976.1,1.50022269]
[1772869285289,0.50066201,1976.4,1976.1,1.50022269]
[1772869285703,0.002,1976.4,1976.2,0.23510453]
[1772869285898,0.002,1976.4,1976.2,1.50009657]
[1772869286776,0.3783396,1976.6,1976.3,0.46466646]
[1772869287692,0.87700161,1976.6,1976.3,0.46466646]
[1772869287895,0.49866201,1976.5,1976.1,2.4380766]
[1772869288197,0.49866201,1976.5,1976.1,2.90274306]
[1772869288499,0.49866201,1976.5,1976.0,0.001]
[1772869288500,0.49866201,1976.4,1976.0,0.001]
[1772869290402,0.49866201,1976.3,1976.0,0.001]
[1772869292670,5.05946071,1976.5,1976.0,0.46923084]
[1772869292671,0.49262405,1976.5,1976.0,0.46923084]
[1772869294502,0.49262405,1976.5,1976.1,1.26511816]
[1772869294709,0.49262405,1976.5,1976.2,0.46823084]
[1772869298310,0.49262405,1976.5,1976.2,1.73323391]
[1772869298500,0.002,1976.4,1976.2,1.73323391]
[1772869303131,0.87096365,1976.6,1976.2,1.73323391]
[1772869304345,0.49262405,1976.5,1976.2,1.73323391]
[1772869304831,0.3783396,1976.6,1976.3,0.46823084]
[1772869305038,0.87096365,1976.6,1976.3,0.46823084]
[1772869306416,0.87096365,1976.6,1976.3,1.73320602]
[1772869307711,0.3783396,1976.6,1976.4,0.46823084]
[1772869310729,0.002,1976.5,1976.4,0.46823084]
[1772869310939,0.3783396,1976.6,1976.3,1.7332162]
[1772869314858,0.3783396,1976.6,1976.3,1.73320204]
[1772869315156,0.49262405,1976.5,1976.1,1.26608869]
[1772869315346,0.49262405,1976.5,1976.1,1.73431953]
[1772869315668,0.49262405,1976.5,1976.1,0.46923084]
[1772869316076,0.49262405,1976.5,1976.2,0.46823084]
[1772869317142,0.49262405,1976.5,1976.2,1.73328276]
[1772869317353,0.49262405,1976.5,1976.2,0.46823084]
[1772869318244,0.49262405,1976.5,1976.2,1.73328375]
[1772869318443,0.49262405,1976.5,1976.2,0.46823084]
[1772869320275,0.49262405,1976.5,1976.2,1.73327876]
[1772869320450,0.86839495,1976.6,1976.3,0.45421981]
[1772869322078,0.3783396,1976.6,1976.3,1.26497327]
[1772869322381,0.3783396,1976.6,1976.4,0.48073896]
[1772869322570,0.002,1976.5,1976.4,0.48073896]
[1772869323148,0.002,1976.5,1976.3,1.26597327]
[1772869323445,0.002,1976.5,1976.3,1.74671223]
[1772869332699,0.85248034,1976.6,1976.3,1.74671223]
[1772869333796,1e-08,1976.6,1976.4,0.48073896]
[1772869334295,0.47614074,1976.8,1976.5,0.48073896]
[1772869334497,0.002,1976.8,1976.5,0.48073896]
[1772869335898,0.002,1976.8,1976.6,1.26479813]
[1772869336101,0.002,1976.8,1976.6,1.74553709]
[1772869340410,0.47414074,1977.4,1976.8,0.48073896]
[1772869340778,0.47414074,1977.4,1976.7,0.48073896]
[1772869341083,0.47414074,1977.4,1976.6,1.26479813]
[1772869341293,0.47414074,1977.4,1976.6,1.74553709]
[1772869343476,0.47414074,1977.2,1976.6,1.74553709]
[1772869346603,0.47414074,1977.2,1976.7,0.001]
[1772869346911,0.47614074,1977.1,1976.7,0.001]
[1772869347210,0.47614074,1977.1,1976.7,0.48173896]
[1772869349713,0.002,1977.1,1976.8,0.48073896]
[1772869349913,0.47614074,1977.1,1976.8,0.48073896]
[1772869353315,0.47614074,1977.1,1976.8,1.74535626]
[1772869353694,0.002,1977.1,1976.9,0.46469046]
[1772869355413,0.002,1977.1,1976.9,1.72928849]
[1772869355714,0.002,1977.1,1976.9,0.46469046]
[1772869356485,0.002,1977.1,1976.9,1.72928926]
[1772869356711,0.48289421,1977.1,1976.7,1.7303837]
[1772869357607,0.48289421,1977.1,1976.7,0.001]
[1772869357813,0.48289421,1977.1,1976.8,0.46469046]
[1772869358326,0.002,1977.1,1976.8,0.46469046]
[1772869359528,0.002,1977.1,1976.8,0.46569046]
[1772869359822,0.002,1977.0,1976.8,0.46569046]
[1772869360216,0.002,1977.0,1976.8,1.73034163]
[1772869360520,0.002,1977.0,1976.9,0.46469046]
[1772869360724,0.48289421,1977.2,1976.9,0.46469046]
[1772869361424,1.74730948,1977.2,1976.9,0.46469046]
[1772869366694,0.48289421,1977.2,1976.9,0.46469046]
[1772869366900,0.002,1977.2,1977.0,0.46469046]
[1772869369504,0.48289421,1977.2,1976.8,1.73031871]
[1772869372132,0.48089421,1977.1,1976.8,0.001]
[1772869372603,0.48289421,1977.1,1976.8,0.001]
[1772869373402,0.002,1977.4,1977.0,1.72918708]
[1772869373599,0.48289421,1977.4,1977.0,0.46469046]
[1772869373942,0.48289421,1977.4,1977.1,0.46469046]
[1772869374643,0.48089421,1977.6,1977.2,0.46469046]
[1772869374799,0.48089421,1977.7,1977.2,0.46469046]
[1772869375727,0.48089421,1977.7,1977.3,0.46469046]
[1772869375931,1.74499266,1977.7,1977.3,0.46469046]
[1772869376128,0.48089421,1977.7,1977.3,0.46469046]
[1772869378225,1.72604954,1977.9,1977.4,1.73841987]
[1772869378424,0.46208166,1977.8,1977.4,1.73841987]
[1772869378730,0.46208166,1977.8,1977.0,0.47413344]
[1772869380336,0.46208166,1977.6,1977.2,0.47413344]
[1772869380636,0.46208166,1977.6,1976.8,0.47513344]
[1772869380811,0.46208166,1977.6,1976.8,0.001]
[1772869381331,0.46208166,1977.6,1976.9,0.47413344]
[1772869382101,0.46208166,1977.6,1976.8,1.78540281]
[1772869382298,0.46208166,1977.6,1976.8,0.52073548]
[1772869382502,0.51307756,1977.4,1976.8,0.52073548]
[1772869382741,0.51307756,1977.4,1976.8,1.78539984]
[1772869383208,0.51307756,1977.4,1976.8,1.26564141]
[1772869383413,0.51307756,1977.4,1976.8,0.001]
[1772869383621,0.51307756,1977.4,1976.8,1.26566356]
[1772869384124,0.51307756,1977.4,1976.8,0.001]
[1772869384328,0.51307756,1977.4,1976.8,1.26566556]
[1772869384704,0.51307756,1977.2,1976.9,0.001]
[1772869385817,1.26635037,1977.3,1976.9,0.001]
[1772869385818,0.002,1977.3,1976.9,0.52073548]
[1772869386017,0.51507756,1977.3,1976.9,0.52073548]
[1772869387138,0.51507756,1977.3,1977.0,0.51973548]
[1772869389814,0.51507756,1977.3,1977.0,1.78422917]
[1772869390326,0.002,1977.3,1977.0,1.7842772]
[1772869390529,0.002,1977.4,1977.1,0.51973548]
[1772869392034,0.002,1977.4,1977.3,0.51973548]
[1772869393127,0.51307756,1977.7,1977.3,0.51973548]
[1772869393528,0.51307756,1977.8,1977.3,0.51973548]
[1772869395140,0.51307756,1977.8,1977.5,0.51973548]
[1772869395445,0.51307756,1978.0,1977.5,0.51973548]
[1772869397348,0.51307756,1978.0,1977.6,1.78389405]
[1772869398348,0.36730262,1978.3,1977.7,0.51973548]
[1772869399029,0.002,1978.0,1977.7,0.51973548]
[1772869399229,0.36730262,1978.3,1977.7,0.51973548]
[1772869399630,0.36730262,1978.3,1977.9,0.51973548]
[1772869399955,0.51307756,1978.2,1977.6,0.51973548]
[1772869400126,0.51307756,1978.2,1977.7,0.51973548]
[1772869401244,0.36730262,1978.3,1977.7,0.51973548]
[1772869401449,0.88038018,1978.3,1977.7,0.51973548]
[1772869402154,0.88038018,1978.3,1977.9,0.51973548]
[1772869402449,0.51307756,1978.5,1977.9,0.51973548]
[1772869402656,0.51307756,1978.6,1977.9,0.51973548]
[1772869404257,0.51307756,1978.6,1978.1,0.51973548]
[1772869404426,0.51307756,1978.7,1978.1,0.51973548]
[1772869404627,1.77653654,1978.7,1978.1,0.51973548]
[1772869405698,1.26345898,1978.7,1978.1,0.51973548]
[1772869405951,5.56648583,1978.9,1978.1,0.51973548]
[1772869406273,0.51307756,1978.6,1978.0,1.78363841]
[1772869406550,0.51307756,1978.6,1978.1,0.51973548]
[1772869407228,0.51307756,1978.6,1977.2,5.05714678]
[1772869407434,0.51307756,1978.6,1977.3,0.51973548]
[1772869408357,0.51307756,1978.4,1977.5,0.51973548]
[1772869410566,1.26371126,1978.3,1977.7,0.51973548]
[1772869410734,0.51307756,1978.2,1977.7,0.51973548]
[1772869412648,0.51307756,1978.2,1977.9,0.70561631]
[1772869413558,0.51307756,1978.2,1977.7,1.26404908]
[1772869413559,0.72700816,1978.1,1977.7,1.26404908]
[1772869413761,1.26378175,1978.2,1977.8,0.70561631]
[1772869414365,1.99078991,1978.2,1977.8,0.70561631]
[1772869414560,0.72700816,1978.2,1977.8,0.70561631]
[1772869414938,1.99078504,1978.2,1977.9,0.70561631]
[1772869415689,0.72700816,1978.1,1977.6,0.001]
[1772869416271,0.72700816,1978.1,1977.6,0.70661631]
[1772869416669,0.72700816,1978.1,1977.7,0.70561631]
[1772869417092,1.99091109,1978.0,1977.7,0.70561631]
[1772869417585,0.72700816,1977.9,1977.6,0.70661631]
[1772869417787,1.26390293,1978.0,1977.6,0.70661631]
[1772869417986,0.72700816,1977.9,1977.6,0.70661631]
[1772869419687,0.72700816,1978.0,1977.6,0.70661631]
[1772869420590,0.72700816,1978.0,1977.6,1.9707674]
[1772869420759,0.72700816,1978.0,1977.7,0.70561631]
[1772869421983,5.05687363,1978.3,1977.7,1.96969781]
[1772869421984,0.72700816,1978.2,1977.7,1.96969781]
[1772869422290,1.26571288,1978.3,1977.8,0.70561631]
[1772869423856,1.99272104,1978.3,1977.9,0.70561631]
[1772869424962,0.002,1978.2,1977.9,0.70561631]
[1772869426894,0.72900816,1978.2,1977.9,0.70561631]
[1772869430394,1.99280188,1978.2,1977.9,0.70561631]
[1772869430698,1.26579372,1978.2,1977.9,0.70561631]
[1772869435383,0.72700816,1978.1,1977.8,0.001]
[1772869437410,1.99086911,1978.1,1977.8,0.001]
[1772869438218,1.99086911,1978.1,1977.8,0.8781669]
[1772869439112,1.99086911,1978.1,1977.9,0.001]
[1772869439419,5.05711504,1978.2,1977.9,0.001]
[1772869439420,2.11428043,1978.0,1977.9,0.001]
[1772869440723,0.8503775,1978.0,1977.9,0.001]
[1772869441513,2.11428043,1978.0,1977.9,0.001]
[1772869443714,0.8503775,1978.0,1977.9,0.001]
[1772869445115,2.11428043,1978.0,1977.9,0.001]
[1772869447132,0.8503775,1978.0,1977.9,0.001]
[1772869448330,2.11428043,1978.0,1977.9,0.001]
[1772869452836,0.9107696,1977.9,1977.6,0.001]
[1772869453707,0.9107696,1977.9,1977.6,0.87446262]
[1772869454208,0.9107696,1977.9,1977.7,0.001]
[1772869454930,2.17473974,1977.9,1977.7,0.001]
[1772869455513,0.9107696,1977.9,1977.7,0.001]
[1772869455743,0.9107696,1977.8,1977.7,0.001]
[1772869456941,1.26398154,1977.9,1977.7,0.001]
[1772869462339,0.9107696,1978.0,1977.7,0.001]
[1772869462538,2.17461608,1978.1,1977.7,0.87446262]
[1772869462716,0.9107696,1978.1,1977.7,0.87446262]
[1772869463744,1.26582302,1978.2,1977.8,0.87346262]
[1772869464336,2.17659262,1978.2,1977.8,0.87346262]
[1772869467624,2.17659262,1978.2,1977.8,0.87446262]
[1772869468040,0.002,1978.1,1977.8,0.87446262]
[1772869468946,0.9127696,1978.1,1977.8,0.87446262]
[1772869469648,0.9127696,1978.1,1977.8,0.001]
[1772869469854,0.9107696,1978.0,1977.8,0.001]
[1772869470035,2.17473643,1977.9,1977.8,0.001]
[1772869474058,1.26396683,1977.9,1977.8,0.001]
[1772869474557,2.23488752,1978.0,1977.8,0.001]
[1772869480964,2.23488752,1978.0,1977.9,0.001]
[1772869481533,2.23688752,1978.0,1977.9,0.001]
[1772869484259,0.97093827,1977.9,1977.8,0.001]
[1772869485872,2.79394925,1978.0,1977.8,0.99598198]
[1772869488302,1.53,1978.0,1977.8,0.99598198]
[1772869488448,0.002,1978.0,1977.8,0.99598198]
[1772869494361,0.002,1978.0,1977.9,0.001]
[1772869496574,0.002,1978.0,1977.8,0.99498198]
[1772869496778,0.002,1978.0,1977.8,0.47731997]
[1772869497479,3.03157299,1977.9,1977.3,1.26435037]
[1772869497652,3.03157299,1977.8,1977.4,0.80880662]
[1772869497853,0.5035147,1977.7,1977.4,0.99498198]
[1772869498054,2.42725839,1978.0,1977.4,0.99498198]
[1772869499680,2.42725839,1978.0,1977.6,1.84048258]